bitfinex-derivatives/quotes_BNBF0:USTF0_20250710
["timestamp","ask_amount","ask_price","bid_price","bid_amount"]
[1752116337417,0.2594759,670.96,670.57,1.5246659]
[1752116337714,0.2594759,670.96,670.58,1.5246659]
[1752116337914,0.2594759,670.96,670.59,1.5246659]
[1752116338216,0.2594759,670.96,670.44,2.593]
[1752116338415,0.2594759,670.96,670.45,1.5246535]
[1752116338719,0.2594759,670.96,670.46,1.5246535]
[1752116338920,0.2594759,670.96,670.47,1.5246535]
[1752116339120,0.2594759,670.96,670.48,1.5246535]
[1752116339418,0.2594759,670.96,670.49,1.5246535]
[1752116339616,0.2594759,670.96,670.5,1.5246535]
[1752116339917,0.2594759,670.96,670.01,3.3446537]
[1752116339918,3.3479565,671.27,670.51,1.5246535]
[1752116340217,0.2593734,671.04,670.52,1.5246535]
[1752116340420,0.2593734,671.04,670.53,1.5246535]
[1752116340720,0.2593734,671.04,670.54,1.5246535]
[1752116340920,0.2593734,671.04,670.55,1.5246535]
[1752116341119,0.2593734,671.04,670.56,1.5246535]
[1752116341318,0.2593734,671.04,670.57,1.5246535]
[1752116341516,0.2593734,671.04,670.58,1.5246535]
[1752116341717,0.2593734,671.04,670.59,1.5246535]
[1752116341921,0.2593734,671.04,670.6,1.5246535]
[1752116342219,0.2593734,671.04,670.61,1.5246535]
[1752116342422,0.2593734,671.04,670.62,1.5246535]
[1752116342620,0.2593734,671.04,670.63,1.5246535]
[1752116342820,0.2593734,671.04,670.64,1.5246535]
[1752116343017,0.2593734,671.04,670.58,2.363]
[1752116343222,0.2593734,671.04,670.59,1.5245495]
[1752116343423,0.2593734,671.04,670.58,2.363]
[1752116343720,0.2593734,671.04,670.59,1.524558]
[1752116343923,0.2593734,671.04,670.6,1.524558]
[1752116344119,0.2593734,671.04,670.61,1.524558]
[1752116344319,0.2593734,671.04,670.62,1.524558]
[1752116344525,0.2593734,671.04,670.63,1.524558]
[1752116344723,0.2593734,671.04,670.64,1.524558]
[1752116344924,0.2593734,671.04,670.58,2.363]
[1752116345220,0.2593734,671.04,670.59,1.5245582]
[1752116345420,0.2593734,671.04,670.6,1.5245582]
[1752116345619,0.2593734,671.04,670.61,1.5245582]
[1752116345824,0.2593734,671.04,670.62,1.5245582]
[1752116346123,0.2593734,671.04,670.63,1.5245582]
[1752116346323,0.2593734,671.04,670.64,1.5245582]
[1752116346520,0.2593734,671.04,670.58,2.363]
[1752116346721,0.2593734,671.04,670.59,1.5245705]
[1752116346922,0.2593734,671.04,670.58,2.363]
[1752116346923,0.2593734,671.04,670.6,1.5245705]
[1752116347121,0.2593734,671.04,670.61,1.5245705]
[1752116347321,0.2593734,671.04,670.62,1.5245705]
[1752116347522,0.2593734,671.04,670.63,1.5245705]
[1752116347726,0.2593734,671.04,670.64,1.5245705]
[1752116347925,0.2593734,671.04,670.58,2.363]
[1752116348223,0.2593734,671.04,670.59,1.524584]
[1752116348422,0.2593734,671.04,670.58,2.363]
[1752116348626,0.2593734,671.04,670.59,1.526636]
[1752116348823,0.2593734,671.04,670.6,1.526636]
[1752116349022,0.2593734,671.04,670.61,1.526636]
[1752116349222,0.2593734,671.04,670.62,1.526636]
[1752116349521,0.2593734,671.04,670.63,1.526636]
[1752116349721,0.2593734,671.04,670.64,1.526636]
[1752116349925,0.2593734,671.04,670.58,2.363]
[1752116350127,0.2593734,671.04,670.59,1.5266817]
[1752116350424,0.2593734,671.04,670.6,1.5266817]
[1752116350722,0.2593734,671.04,670.61,1.5266817]
[1752116350928,0.2593734,671.04,670.62,1.5266817]
[1752116351123,0.2593734,671.04,670.63,1.5266817]
[1752116351322,0.2593734,671.04,670.64,1.5266817]
[1752116351524,0.2593734,671.04,670.58,2.363]
[1752116351726,0.2593734,671.04,670.59,1.5267552]
[1752116352028,0.2593734,671.04,670.58,2.363]
[1752116352029,0.2593734,671.04,670.6,1.5267552]
[1752116352226,0.2593734,671.04,670.61,1.5267552]
[1752116352528,0.2593734,671.04,670.62,1.5267552]
[1752116352725,0.2593734,671.04,670.63,1.5267552]
[1752116352925,0.2593734,671.04,670.64,1.5267552]
[1752116353131,0.2593734,671.04,670.58,2.363]
[1752116353332,0.2593734,671.04,670.59,1.5268027]
[1752116353533,0.2593734,671.04,670.6,1.5268027]
[1752116353832,0.2593734,671.04,670.61,1.5268027]
[1752116354033,0.2593734,671.04,670.62,1.5268027]
[1752116354233,0.2593734,671.04,670.63,1.5268027]
[1752116354428,0.2593734,671.04,670.64,1.5268027]
[1752116354630,0.2593734,671.04,670.58,2.363]
[1752116354930,0.2593734,671.04,670.59,1.5268864]
[1752116355130,0.2593734,671.04,670.6,1.5268864]
[1752116355330,0.2593734,671.04,670.61,1.5268864]
[1752116355531,0.2593734,671.04,670.62,1.5268864]
[1752116355735,0.2593734,671.04,670.63,1.5268864]
[1752116356029,0.2593734,671.04,670.64,1.5268864]
[1752116356234,0.2593734,671.04,670.58,2.363]
[1752116356433,0.2593734,671.04,670.59,1.5269462]
[1752116356634,0.2593734,671.04,670.6,1.5269462]
[1752116356835,0.2593734,671.04,670.61,1.5269462]
[1752116357130,0.2593734,671.04,670.62,1.5269462]
[1752116357332,0.2593734,671.04,670.63,1.5269462]
[1752116357531,0.2593734,671.04,670.64,1.5269462]
[1752116357734,0.2593734,671.04,670.65,1.5269462]
[1752116357935,0.2593734,671.04,670.42,1.6722697]
[1752116358132,0.2593734,671.04,670.43,1.5270558]
[1752116358335,0.2593734,671.04,670.44,1.5270558]
[1752116358531,0.2593734,671.04,670.45,1.5270558]
[1752116358737,0.2593734,671.04,670.46,1.5270558]
[1752116359038,0.2593734,671.04,670.47,1.5270558]
[1752116359340,0.2593734,671.04,670.48,1.5270558]
[1752116359531,0.2593734,671.04,670.49,1.5270558]
[1752116359837,0.2593734,671.04,670.5,1.5270558]
[1752116360039,0.2593734,671.04,670.51,1.5270558]
[1752116360237,0.2593734,671.04,670.52,1.5270558]
[1752116360436,0.2593734,671.04,670.53,1.5270558]
[1752116360638,0.2593734,671.04,670.54,1.5270558]
[1752116360837,0.2593734,671.04,670.55,1.5270558]
[1752116361037,0.2593734,671.04,670.56,1.5270558]
[1752116361234,0.2593734,671.04,670.57,1.5270558]
[1752116361533,0.2593734,671.04,670.58,1.5270558]
[1752116361737,0.2593734,671.04,670.59,1.5270558]
[1752116362032,0.2593734,671.04,670.6,1.5270558]
[1752116362238,0.2593734,671.04,670.61,1.5270558]
[1752116362439,0.2593734,671.04,670.62,1.5270558]
[1752116362638,0.2593734,671.04,670.63,1.5270558]
[1752116362933,0.2593734,671.04,670.64,1.5270558]
[1752116363138,0.2593734,671.04,670.65,1.5270558]
[1752116363338,0.2593734,671.04,670.66,1.5270558]
[1752116363535,0.2593734,671.04,670.53,1.869]
[1752116363840,0.2593734,671.04,670.54,1.5276038]
[1752116364035,0.2593734,671.04,670.55,1.5276038]
[1752116364234,0.2593734,671.04,670.53,1.869]
[1752116364235,0.2593734,671.04,670.56,1.5276038]
[1752116364436,0.2593734,671.04,670.57,1.5276038]
[1752116364638,0.2593734,671.04,670.58,1.5276038]
[1752116364837,0.2593734,671.04,670.59,1.5276038]
[1752116365038,0.2593734,671.04,670.6,1.5276038]
[1752116365239,0.2593734,671.04,670.61,1.5276038]
[1752116365434,0.2593734,671.04,670.53,1.869]
[1752116365435,0.2593734,671.04,670.62,1.5276038]
[1752116365635,0.2593734,671.04,670.63,1.5276038]
[1752116365840,0.2593734,671.04,670.64,1.5276038]
[1752116366040,0.2593734,671.04,670.65,1.5276038]
[1752116366241,0.2593734,671.04,670.66,1.5276038]
[1752116366542,0.2593734,671.04,670.67,1.5276038]
[1752116366738,0.2593734,671.04,670.53,1.869]
[1752116366937,0.2593734,671.04,670.54,1.5280674]
[1752116367137,0.2593734,671.04,670.55,1.5280674]
[1752116367341,0.2593734,671.04,670.56,1.5280674]
[1752116367541,0.2593734,671.04,670.57,1.5280674]
[1752116367743,0.2593734,671.04,670.58,1.5280674]
[1752116367944,0.2593734,671.04,670.59,1.5280674]
[1752116368140,0.2593734,671.04,670.53,1.869]
[1752116368141,0.2593734,671.04,670.6,1.5280674]
[1752116368342,0.2593734,671.04,670.61,1.5280674]
[1752116368540,0.2593734,671.04,670.62,1.5280674]
[1752116368744,0.2593734,671.04,670.63,1.5280674]
[1752116369043,0.2593734,671.04,670.64,1.5280674]
[1752116369344,0.2593734,671.04,670.65,1.5280674]
[1752116369543,0.2593734,671.04,670.66,1.5280674]
[1752116369744,0.2593734,671.04,670.67,1.5280674]
[1752116370046,0.2593734,671.04,670.53,1.869]
[1752116370244,0.2593734,671.04,670.54,1.5282616]
[1752116370544,0.2593734,671.04,670.55,1.5282616]
[1752116370743,0.2593734,671.04,670.56,1.5282616]
[1752116371044,0.2593734,671.04,670.57,1.5282616]
[1752116371344,0.2593734,671.04,670.58,1.5282616]
[1752116371541,0.2593734,671.04,670.59,1.5282616]
[1752116371742,0.2593734,671.04,670.6,1.5282616]
[1752116371940,0.2593734,671.04,670.61,1.5282616]
[1752116372144,0.2593734,671.04,670.62,1.5282616]
[1752116372441,0.2593734,671.04,670.63,1.5282616]
[1752116372642,0.2593734,671.04,670.64,1.5282616]
[1752116372846,0.2593734,671.04,670.65,1.5282616]
[1752116373044,0.2593734,671.04,670.66,1.5282616]
[1752116373243,0.2593734,671.04,670.67,1.5282616]
[1752116373446,0.2593734,671.04,670.68,1.5282616]
[1752116373647,0.2593734,671.04,670.53,1.869]
[1752116373849,0.2593734,671.04,670.54,1.5285862]
[1752116374148,0.2593734,671.04,670.55,1.5285862]
[1752116374352,0.2593734,671.04,670.56,1.5285862]
[1752116374545,0.2593734,671.04,670.57,1.5285862]
[1752116374847,0.2593734,671.04,670.53,1.869]
[1752116374848,0.2593734,671.04,670.58,1.5285862]
[1752116375047,0.2593734,671.04,670.59,1.5285862]
[1752116375245,0.2593734,671.04,670.6,1.5285862]
[1752116375445,0.2593734,671.04,670.61,1.5285862]
[1752116375644,0.2593734,671.04,670.62,1.5285862]
[1752116375843,0.2593734,671.04,670.63,1.5285862]
[1752116376048,0.2593734,671.04,670.64,1.5285862]
[1752116376244,0.2593734,671.04,670.65,1.5285862]
[1752116376547,0.2593734,671.04,670.66,1.5285862]
[1752116376749,0.2593734,671.04,670.67,1.5285862]
[1752116376946,0.2593734,671.04,670.68,1.5285862]
[1752116377151,0.2593734,671.04,670.69,1.5285862]
[1752116377351,0.2593734,671.04,670.53,1.869]
[1752116377552,0.2593734,671.04,670.54,1.5291372]
[1752116377851,0.2593734,671.04,670.55,1.5291372]
[1752116378052,0.2593734,671.04,670.56,1.5291372]
[1752116378249,0.2593734,671.04,670.57,1.5291372]
[1752116378453,0.2593734,671.04,670.53,1.869]
[1752116378454,0.2593734,671.04,670.58,1.5291372]
[1752116378650,0.2593734,671.04,670.59,1.5291372]
[1752116378949,0.2593734,671.04,670.6,1.5291372]
[1752116379153,0.2593734,671.04,670.61,1.5291372]
[1752116379353,0.2593734,671.04,670.53,1.869]
[1752116379354,0.2593734,671.04,670.62,1.5285262]
[1752116379550,0.2593734,671.04,670.63,1.5285262]
[1752116379850,0.2593734,671.04,670.64,1.5285262]
[1752116380055,0.2593734,671.04,670.65,1.5285262]
[1752116380251,0.2593734,671.04,670.66,1.5285262]
[1752116380554,0.2593734,671.04,670.67,1.5285262]
[1752116380752,0.2593734,671.04,670.68,1.5285262]
[1752116380955,0.2593734,671.04,670.69,1.5285262]
[1752116381154,0.2593734,671.04,670.53,1.869]
[1752116381353,0.2593734,671.04,670.54,1.5285309]
[1752116381553,0.2593734,671.04,670.55,1.5285309]
[1752116381752,0.2593734,671.04,670.56,1.5285309]
[1752116381956,0.2593734,671.04,670.57,1.5285309]
[1752116382153,0.2593734,671.04,670.58,1.5285309]
[1752116382351,0.2593734,671.04,670.59,1.5285309]
[1752116382556,0.2593734,671.04,670.6,1.5285309]
[1752116382754,0.2593734,671.04,670.61,1.5285309]
[1752116382956,0.2593734,671.04,670.62,1.5285309]
[1752116383155,0.2593734,671.04,670.63,1.5285309]
[1752116383353,0.2593734,671.04,670.64,1.5285309]
[1752116383655,0.2593734,671.04,670.65,1.5285309]
[1752116383852,0.2593734,671.04,670.66,1.5285309]
[1752116384053,0.2593734,671.04,670.67,1.5285309]
[1752116384252,0.2593734,671.04,670.68,1.5285309]
[1752116384452,0.2593734,671.04,670.69,1.5285309]
[1752116384652,0.2593734,671.04,670.7,1.5285309]
[1752116384857,0.2593734,671.04,670.53,1.869]
[1752116385058,0.2593734,671.04,670.54,1.5285423]
[1752116385258,0.2593734,671.04,670.55,1.5285423]
[1752116385456,0.2593734,671.04,670.56,1.5285423]
[1752116385655,0.2593734,671.04,670.57,1.5285423]
[1752116385858,0.2593734,671.04,670.58,1.5285423]
[1752116386059,0.2593734,671.04,670.59,1.5285423]
[1752116386258,0.2593734,671.04,670.6,1.5285423]
[1752116386456,0.2593734,671.04,670.61,1.5285423]
[1752116386659,0.2593734,671.04,670.62,1.5285423]
[1752116386957,0.2593734,671.04,670.63,1.5285423]
[1752116387154,0.2593734,671.04,670.64,1.5285423]
[1752116387359,0.2593734,671.04,670.65,1.5285423]
[1752116387556,0.2593734,671.04,670.66,1.5285423]
[1752116387756,0.2593734,671.04,670.67,1.5285423]
[1752116387956,0.2593734,671.04,670.68,1.5285423]
[1752116388154,0.2593734,671.04,670.69,1.5285423]
[1752116388358,0.2593734,671.04,670.7,1.5285423]
[1752116388558,0.2593734,671.04,670.53,1.869]
[1752116388757,0.2593734,671.04,670.54,1.5285605]
[1752116388959,0.2593734,671.04,670.55,1.5285605]
[1752116389157,0.2593734,671.04,670.56,1.5285605]
[1752116389458,0.2593734,671.04,670.57,1.5285605]
[1752116389662,0.2593734,671.04,670.58,1.5285605]
[1752116389860,0.2593734,671.04,670.59,1.5285605]
[1752116390061,0.2593734,671.04,670.6,1.5285605]
[1752116390265,0.2593734,671.04,670.61,1.5285605]
[1752116390461,0.2593734,671.04,670.62,1.5285605]
[1752116390661,0.2593734,671.04,670.63,1.5285605]
[1752116390864,0.2593734,671.04,670.64,1.5285605]
[1752116391063,0.2593734,671.04,670.65,1.5285605]
[1752116391262,0.2593734,671.04,670.66,1.5285605]
[1752116391462,0.2593734,671.04,670.67,1.5285605]
[1752116391661,0.2593734,671.04,670.68,1.5285605]
[1752116391864,0.2593734,671.04,670.69,1.5285605]
[1752116392064,0.2593734,671.04,670.7,1.5285605]
[1752116392362,0.2593734,671.04,670.53,1.869]
[1752116392568,0.2593734,671.04,670.54,1.5286399]
[1752116392762,0.2593734,671.04,670.55,1.5286399]
[1752116392965,0.2593734,671.04,670.56,1.5286399]
[1752116393266,0.2593734,671.04,670.57,1.5286399]
[1752116393466,0.2593734,671.04,670.58,1.5286399]
[1752116393767,0.2593734,671.04,670.59,1.5286399]
[1752116393964,0.2593734,671.04,670.6,1.5286399]
[1752116394163,0.2593734,671.04,670.61,1.5286399]
[1752116394467,0.2593734,671.04,670.62,1.5286399]
[1752116394662,0.2593734,671.04,670.63,1.5286399]
[1752116394862,0.2593734,671.04,670.64,1.5286399]
[1752116395166,0.2593734,671.04,670.65,1.5286399]
[1752116395364,0.2593734,671.04,670.66,1.5286399]
[1752116395567,0.2593734,671.04,670.67,1.5286399]
[1752116395766,0.2593734,671.04,670.68,1.5286399]
[1752116395967,0.2593734,671.04,670.69,1.5286399]
[1752116396164,0.2593734,671.04,670.7,1.5286399]
[1752116396365,0.2593734,671.04,670.53,1.869]
[1752116396565,0.2593734,671.04,670.54,1.5286639]
[1752116396764,0.2593734,671.04,670.55,1.5286639]
[1752116396964,0.2593734,671.04,670.56,1.5286639]
[1752116397267,0.2593734,671.04,670.57,1.5286639]
[1752116397465,0.2593734,671.04,670.58,1.5286639]
[1752116397668,0.2593734,671.04,670.59,1.5286639]
[1752116397965,0.2593734,671.04,670.6,1.5286639]
[1752116398163,0.2593734,671.04,670.61,1.5286639]
[1752116398368,0.2593734,671.04,670.62,1.5286639]
[1752116398663,0.2593734,671.04,670.63,1.5286639]
[1752116398868,0.2593734,671.04,670.64,1.5286639]
[1752116399167,0.2593734,671.04,670.65,1.5286639]
[1752116399367,0.2593734,671.04,670.66,1.5286639]
[1752116399567,0.2593734,671.04,670.67,1.5286639]
[1752116399765,0.2593734,671.04,670.68,1.5286639]
[1752116399965,0.2593734,671.04,670.69,1.5286639]
[1752116400165,0.2593734,671.04,670.7,1.5286639]
[1752116400365,0.2593734,671.04,670.53,1.869]
[1752116400666,0.2593734,671.04,670.54,1.5286874]
[1752116400866,0.2593734,671.04,670.55,1.5286874]
[1752116401067,0.2593734,671.04,670.56,1.5286874]
[1752116401265,0.2593734,671.04,670.57,1.5286874]
[1752116401468,0.2593734,671.04,670.58,1.5286874]
[1752116401664,0.2593734,671.04,670.59,1.5286874]
[1752116401867,0.2593734,671.04,670.6,1.5286874]
[1752116402068,0.2593734,671.04,670.61,1.5286874]
[1752116402266,0.2593734,671.04,670.53,1.869]
[1752116402267,0.2593734,671.04,670.62,1.5286874]
[1752116402469,0.2593734,671.04,670.63,1.5286874]
[1752116402668,0.2593734,671.04,670.64,1.5286874]
[1752116402868,0.2593734,671.04,670.65,1.5286874]
[1752116403071,0.2593734,671.04,670.66,1.5286874]
[1752116403268,0.2593734,671.04,670.67,1.5286874]
[1752116403568,0.2593734,671.04,670.68,1.5286874]
[1752116403767,0.2593734,671.04,670.69,1.5286874]
[1752116403969,0.2593734,671.04,670.7,1.5286874]
[1752116404168,0.2593734,671.04,670.71,1.5286874]
[1752116404374,0.2593734,671.04,670.72,1.5286874]
[1752116404571,0.2593734,671.04,670.73,1.5286874]
[1752116404775,0.2593734,671.04,670.74,1.5286874]
[1752116405076,0.2593734,671.04,670.53,1.869]
[1752116405272,0.2593734,671.04,670.54,1.5286885]
[1752116405473,0.2593734,671.04,670.55,1.5286885]
[1752116405672,0.2593734,671.04,670.56,1.5286885]
[1752116405875,0.2593734,671.04,670.57,1.5286885]
[1752116406072,0.2593734,671.04,670.58,1.5286885]
[1752116406277,0.2593734,671.04,670.59,1.5286885]
[1752116406477,0.2593734,671.04,670.6,1.5286885]
[1752116406773,0.2593734,671.04,670.61,1.5286885]
[1752116406974,0.2593734,671.04,670.62,1.5286885]
[1752116407274,0.2593734,671.04,670.63,1.5286885]
[1752116407578,0.2593734,671.04,670.64,1.5286885]
[1752116407774,0.2593734,671.04,670.65,1.5286885]
[1752116408079,0.2593734,671.04,670.66,1.5286885]
[1752116408275,0.2593734,671.04,670.67,1.5286885]
[1752116408479,0.2593734,671.04,670.68,1.5286885]
[1752116408674,0.2593734,671.04,670.69,1.5286885]
[1752116408874,0.2593734,671.04,670.7,1.5286885]
[1752116409175,0.2593734,671.04,670.71,1.5286885]
[1752116409376,0.2593734,671.04,670.72,1.5286885]
[1752116409575,0.2593734,671.04,670.73,1.5286885]
[1752116409778,0.2593734,671.04,670.74,1.5286885]
[1752116409975,0.2593734,671.04,670.46,1.6750165]
[1752116410180,0.2593734,671.04,670.47,3.2017435]
[1752116410376,0.2593734,671.04,670.48,1.526727]
[1752116410675,0.2593734,671.04,670.49,1.526727]
[1752116410875,0.2593734,671.04,670.5,1.526727]
[1752116411081,0.2593734,671.04,670.51,1.526727]
[1752116411279,0.2593734,671.04,670.52,1.526727]
[1752116411476,0.2593734,671.04,670.53,1.526727]
[1752116411679,0.2593734,671.04,670.54,1.526727]
[1752116411981,0.2593734,671.04,670.55,1.526727]
[1752116412180,0.2593734,671.04,670.56,1.526727]
[1752116412383,0.2593734,671.04,670.57,1.526727]
[1752116412685,0.2593734,671.04,670.58,1.526727]
[1752116412887,0.2593734,671.04,670.59,1.526727]
[1752116413089,0.2593734,671.04,670.6,1.526727]
[1752116413284,0.2593734,671.04,670.61,1.526727]
[1752116413487,0.2593734,671.04,670.62,1.526727]
[1752116413784,0.2593734,671.04,670.63,1.526727]
[1752116413983,0.2593734,671.04,670.64,1.526727]
[1752116414187,0.2593734,671.04,670.65,1.526727]
[1752116414387,0.2593734,671.04,670.66,1.526727]
[1752116414585,0.2593734,671.04,670.67,1.526727]
[1752116414789,0.2593734,671.04,670.68,1.526727]
[1752116414989,0.2593734,671.04,670.69,1.526727]
[1752116415186,0.2593734,671.04,670.7,1.526727]
[1752116415385,0.2593734,671.04,670.71,1.526727]
[1752116415585,0.2593734,671.04,670.72,1.526727]
[1752116415789,0.2593734,671.04,670.73,1.526727]
[1752116416086,0.2593734,671.04,670.74,1.526727]
[1752116416287,0.2593734,671.04,670.49,1.6750165]
[1752116416590,0.2593734,671.04,670.5,1.5268121]
[1752116416786,0.2593734,671.04,670.51,1.5268121]
[1752116416991,0.2593734,671.04,670.52,1.5268121]
[1752116417286,0.2593734,671.04,670.53,1.5268121]
[1752116417486,0.2593734,671.04,670.54,1.5268121]
[1752116417791,0.2593734,671.04,670.55,1.5268121]
[1752116417990,0.2593734,671.04,670.47,1.721]
[1752116417991,0.2593734,671.04,670.56,1.5268121]
[1752116418186,0.2593734,671.04,670.57,1.5268121]
[1752116418490,0.2593734,671.04,670.58,1.5268121]
[1752116418789,0.2593734,671.04,670.59,1.5268121]
[1752116418986,0.2593734,671.04,670.6,1.5268121]
[1752116419189,0.2593734,671.04,670.61,1.5268121]
[1752116419389,0.2593734,671.04,670.62,1.5268121]
[1752116419691,0.2593734,671.04,670.63,1.5268121]
[1752116419895,0.2593734,671.04,670.64,1.5268121]
[1752116420089,0.2593734,671.04,670.65,1.5268121]
[1752116420290,0.2593734,671.04,670.66,1.5268121]
[1752116420489,0.2593734,671.04,670.67,1.5268121]
[1752116420690,0.2593734,671.04,670.49,1.6750165]
[1752116420691,0.2593734,671.04,670.68,1.5268121]
[1752116420892,0.2593734,671.04,670.69,1.5268121]
[1752116421094,0.2593734,671.04,670.7,1.5268121]
[1752116421392,0.2593734,671.04,670.71,1.5268121]
[1752116421591,0.2593734,671.04,670.49,1.6750165]
[1752116421592,0.2593734,671.04,670.72,1.5268121]
[1752116421789,0.2593734,671.04,670.73,1.5268121]
[1752116421988,0.2593734,671.04,670.74,1.5268121]
[1752116422192,0.2593734,671.04,670.49,1.6750165]
[1752116422389,0.2593734,671.04,670.5,1.5268046]
[1752116422688,0.2593734,671.04,670.51,1.5268046]
[1752116422992,0.2593734,671.04,670.52,1.5268046]
[1752116423192,0.2593734,671.04,670.53,1.5268046]
[1752116423391,0.2593734,671.04,670.54,1.5268046]
[1752116423688,0.2593734,671.04,670.55,1.5268046]
[1752116423890,0.2593734,671.04,670.56,1.5268046]
[1752116424088,0.2593734,671.04,670.57,1.5268046]
[1752116424292,0.2593734,671.04,670.58,1.5268046]
[1752116424491,0.2593734,671.04,670.59,1.5268046]
[1752116424691,0.2593734,671.04,670.6,1.5268046]
[1752116424992,0.2593734,671.04,670.61,1.5268046]
[1752116425196,0.2593734,671.04,670.62,1.5268046]
[1752116425396,0.2593734,671.04,670.63,1.5268046]
[1752116425594,0.2593734,671.04,670.64,1.5268046]
[1752116425795,0.2593734,671.04,670.65,1.5268046]
[1752116426096,0.2593734,671.04,670.66,1.5268046]
[1752116426291,0.2593734,671.04,670.67,1.5268046]
[1752116426496,0.2593734,671.04,670.68,1.5268046]
[1752116426693,0.2593734,671.04,670.69,1.5268046]
[1752116426896,0.2593734,671.04,670.7,1.5268046]
[1752116427092,0.2593734,671.04,670.71,1.5268046]
[1752116427294,0.2593734,671.04,670.43,1.6750165]
[1752116427295,0.2593734,671.04,670.72,1.5268046]
[1752116427492,0.2593734,671.04,670.73,1.5268046]
[1752116427694,0.2593734,671.04,670.74,1.5268046]
[1752116427895,0.2593734,671.04,670.43,1.6750165]
[1752116428094,0.2593734,671.04,670.44,1.5268034]
[1752116428298,0.2593734,671.04,670.45,1.5268034]
[1752116428497,0.2593734,671.04,670.46,1.5268034]
[1752116428794,0.2593734,671.04,670.47,1.5268034]
[1752116428994,0.2593734,671.04,670.48,1.5268034]
[1752116429192,0.2593734,671.04,670.49,1.5268034]
[1752116429398,0.2593734,671.04,670.5,1.5268034]
[1752116429598,0.2593734,671.04,670.51,1.5268034]
[1752116429799,0.2593734,671.04,670.52,1.5268034]
[1752116430099,0.2593734,671.04,670.53,1.5268034]
[1752116430299,0.2593734,671.04,670.54,1.5268034]
[1752116430497,0.2593734,671.04,670.55,1.5268034]
[1752116430701,0.2593734,671.04,670.56,1.5268034]
[1752116430902,0.2593734,671.04,670.57,1.5268034]
[1752116431099,0.2593734,671.04,670.58,1.5268034]
[1752116431302,0.2593734,671.04,670.59,1.5268034]
[1752116431599,0.2593734,671.04,670.6,1.5268034]
[1752116431802,0.2593734,671.04,670.61,1.5268034]
[1752116432098,0.2593734,671.04,670.62,1.5268034]
[1752116432301,0.2593734,671.04,670.63,1.5268034]
[1752116432500,0.2593734,671.04,670.64,1.5268034]
[1752116432700,0.2593734,671.04,670.65,1.5268034]
[1752116432999,0.2593734,671.04,670.66,1.5268034]
[1752116433298,0.2593734,671.04,670.67,1.5268034]
[1752116433500,0.2593734,671.04,670.68,1.5268034]
[1752116433798,0.2593734,671.04,670.48,1.6750165]
[1752116433799,0.2593734,671.04,670.69,1.5268034]
[1752116434003,0.2593734,671.04,670.7,1.5268034]
[1752116434207,0.2593734,671.04,670.71,1.5268034]
[1752116434405,0.2593734,671.04,670.72,1.5268034]
[1752116434605,0.2593734,671.04,670.73,1.5268034]
[1752116434902,0.2593734,671.04,670.74,1.5268034]
[1752116435205,0.2593734,671.04,670.5,1.6750165]
[1752116435406,0.2593734,671.04,670.51,1.5267955]
[1752116435605,0.2593734,671.04,670.52,1.5267955]
[1752116435804,0.2593734,671.04,670.53,1.5267955]
[1752116436103,0.2593734,671.04,670.54,1.5267955]
[1752116436302,0.2593734,671.04,670.5,1.6750165]
[1752116436303,0.2593734,671.04,670.55,1.5267955]
[1752116436505,0.2593734,671.04,670.56,1.5267955]
[1752116436706,0.2593734,671.04,670.57,1.5267955]
[1752116436907,0.2593734,671.04,670.58,1.5267955]
[1752116437106,0.2593734,671.04,670.59,1.5267955]
[1752116437308,0.2593734,671.04,670.6,1.5267955]
[1752116437608,0.2593734,671.04,670.61,1.5267955]
[1752116437906,0.2593734,671.04,670.62,1.5267955]
[1752116438109,0.2593734,671.04,670.63,1.5267955]
[1752116438409,0.2593734,671.04,670.64,1.5267955]
[1752116438608,0.2593734,671.04,670.65,1.5267955]
[1752116438805,0.2593734,671.04,670.66,1.5267955]
[1752116439009,0.2593734,671.04,670.67,1.5267955]
[1752116439210,0.2593734,671.04,670.68,1.5267955]
[1752116439410,0.2593734,671.04,670.69,1.5267955]
[1752116439611,0.2593734,671.04,670.7,1.5267955]
[1752116439810,0.2593734,671.04,670.71,1.5267955]
[1752116440111,0.2593734,671.04,670.72,1.5267955]
[1752116440307,0.2593734,671.04,670.73,1.5267955]
[1752116440506,0.2593734,671.04,670.74,1.5267955]
[1752116440710,0.2593734,671.04,670.49,1.6750165]
[1752116440909,0.2593734,671.04,670.51,1.6750165]
[1752116441109,0.2593734,671.04,670.52,3.202402]
[1752116441305,0.2593734,671.04,670.53,1.5273855]
[1752116441512,0.2593734,671.04,670.54,1.5273855]
[1752116441712,0.2593734,671.04,670.55,1.5273855]
[1752116442010,0.2593734,671.04,670.56,1.5273855]
[1752116442212,0.2593734,671.04,670.57,1.5273855]
[1752116442413,0.2593734,671.04,670.58,1.5273855]
[1752116442613,0.2593734,671.04,670.59,1.5273855]
[1752116442910,0.2593734,671.04,670.6,1.5273855]
[1752116443110,0.2593734,671.04,670.61,1.5273855]
[1752116443313,0.2593734,671.04,670.62,1.5273855]
[1752116443511,0.2593734,671.04,670.63,1.5273855]
[1752116443715,0.2593734,671.04,670.64,1.5273855]